Workbook

Sheet 惑星軌道
B1: 中心力による軌道
B2: K= | C2: 250000 | D2: n= | E2: -2 | G2: Δｔ= | H2: 0.05 | J2: 0 | K2: 0 | L2: ←太陽
B4: X0 | C4: Y0 | D4: r | E4: a=Kr^n | F4: Vx0 | G4: Vy0 | H4: ax=-a*x/r | I4: ay=-y*a/r | L4: 抽出きざみ
A5: 1 | B5: 150 | C5: 0 | D5: =SQRT(B5^2+C5^2) -> 150 | E5: =$C$2*D5^$E$2 -> 11.11111111 | F5: 0 | G5: 36 | H5: =-E5*B5/D5 -> -11.11111111 | I5: =-E5*C5/D5 -> 0 | J5: =IF(J6="",MIN(J6:J501),J6) -> 343 | L5: 5 | N5: X | O5: Y
K6: ←
A7: 2 | B7: =B5+F7*$H$2 -> 149.9722222 | C7: =C5+G7*$H$2 -> 1.8 | D7: 149.9830238 | E7: =$C$2*D7^$E$2 -> 11.11362653 | F7: =F5+H5*$H$2 -> -0.5555555556 | G7: =G5+I5*$H$2 -> 36 | H7: =-E7*B7/D7 -> -11.11282613 | I7: =-C7*E7/D7 -> -0.1333786134
A8: 3 | B8: =B7+F8*$H$2 -> 149.9166624 | C8: =C7+G8*$H$2 -> 3.599666553 | D8: 149.9598722 | E8: 11.11705836 | F8: =F7+H7*$H$2 -> -1.111196862 | G8: =G7+I7*$H$2 -> 35.99333107 | H8: =-E8*B8/D8 -> -11.11385507 | I8: =-C8*E8/D8 -> -0.2668560768
A9: 4 | B9: 149.8333179 | C9: 5.398665967 | D9: 149.9305464 | E9: 11.12140768 | F9: -1.666889616 | G9: 35.97998827 | H9: -11.11419556 | I9: -0.400457189
A10: 5 | B10: 149.7221879 | C10: 7.196664237 | D10: 149.8950484 | E10: 11.12667583 | F10: -2.222599394 | G10: 35.95996541 | H10: -11.11384444 | I10: -0.5342067725
A11: 6 | B11: 149.5832733 | C11: 8.99332699 | D11: 149.8533803 | E11: 11.13286443 | F11: -2.778291615 | G11: 35.93325507 | H11: -11.11279772 | I11: -0.6681296743
A12: 7 | B12: 149.4165768 | C12: 10.78831942 | D12: 149.8055448 | E12: 11.13997541 | F12: -3.333931502 | G12: 35.89984858 | H12: -11.11105061 | I12: -0.8022507656
A13: 8 | B13: 149.2221026 | C13: 12.58130622 | D13: 149.7515448 | E13: 11.14801095 | F13: -3.889484032 | G13: 35.85973605 | H13: -11.10859748 | I13: -0.9365949427
A14: 9 | B14: 148.9998569 | C14: 14.37195154 | D14: 149.6913837 | E14: 11.15697354 | F14: -4.444913906 | G14: 35.8129063 | H14: -11.10543186 | I14: -1.071187126
A15: 10 | B15: 148.7498476 | C15: 16.15991888 | D15: 149.6250652 | E15: 11.16686596 | F15: -5.000185499 | G15: 35.75934694 | H15: -11.10154644 | I15: -1.206052261
A16: 11 | B16: 148.4720845 | C16: 17.9448711 | D16: 149.5525936 | E16: 11.17769127 | F16: -5.555262821 | G16: 35.69904433 | H16: -11.09693307 | I16: -1.341215316
A17: 12 | B17: 148.166579 | C17: 19.72647028 | D17: 149.4739735 | E17: 11.18945282 | F17: -6.110109475 | G17: 35.63198356 | H17: -11.09158274 | I17: -1.476701283
A18: 13 | B18: 147.8333446 | C18: 21.5043777 | D18: 149.3892099 | E18: 11.20215424 | F18: -6.664688612 | G18: 35.5581485 | H18: -11.08548556 | I18: -1.612535177
A19: 14 | B19: 147.4723964 | C19: 23.27825379 | D19: 149.2983081 | E19: 11.21579948 | F19: -7.21896289 | G19: 35.47752174 | H19: -11.07863075 | I19: -1.748742033
A20: 15 | B20: 147.0837517 | C20: 25.04775802 | D20: 149.2012741 | E20: 11.23039276 | F20: -7.772894427 | G20: 35.39008464 | H20: -11.07100667 | I20: -1.885346905 | J20: =IF(ABS($B20-$B$5)<1,IF(ABS($C20-$C$5)<1,$A20,""),"") -> 
A21: 16 | B21: 146.6674295 | C21: 26.81254889 | D21: 149.0981141 | E21: 11.2459386 | F21: -8.32644476 | G21: 35.29581729 | H21: -11.06260073 | I21: -2.022374865
A22: 17 | B22: 146.2234507 | C22: 28.57228381 | D22: 148.988835 | E22: 11.26244182 | F22: -8.879574797 | G22: 35.19469855 | H22: -11.05339945 | I22: -2.159850999
A23: 18 | B23: 145.7518385 | C23: 30.32661911 | D23: 148.8734437 | E23: 11.27990754 | F23: -9.432244769 | G23: 35.086706 | H23: -11.0433884 | I23: -2.297800406 | K23: Play
A24: 19 | B24: 145.2526178 | C24: 32.07520991 | D24: 148.7519481 | E24: 11.29834117 | F24: -9.984414189 | G24: 34.97181598 | H24: -11.03255219 | I24: -2.436248192 | K24: ｘ | L24: ｙ
A25: 20 | B25: 144.7258157 | C25: 33.81771009 | D25: 148.6243561 | E25: 11.31774843 | F25: -10.5360418 | G25: 34.85000357 | H25: -11.02087448 | I25: -2.575219468 | K25: 149.1800672 | L25: -4.759130511
A26: 21 | B26: 144.1714614 | C26: 35.55377222 | D26: 148.4906765 | E26: 11.33813535 | F26: -11.08708552 | G26: 34.7212426 | H26: -11.00833791 | I26: -2.714739344
A27: 22 | B27: 143.5895863 | C27: 37.2830475 | D27: 148.3509182 | E27: 11.35950826 | F27: -11.63750242 | G27: 34.58550563 | H27: -10.99492414 | I27: -2.854832927
A28: 23 | B28: 142.9802238 | C28: 39.0051857 | D28: 148.2050907 | E28: 11.38187379 | F28: -12.18724862 | G28: 34.44276398 | H28: -10.98061378 | I28: -2.995525312
A29: 24 | B29: 142.3434099 | C29: 40.71983509 | D29: 148.0532043 | E29: 11.40523889 | F29: -12.73627931 | G29: 34.29298772 | H29: -10.96538641 | I29: -3.136841575
A30: 25 | B30: 141.6791824 | C30: 42.42664237 | D30: 147.8952694 | E30: 11.42961082 | F30: -13.28454863 | G30: 34.13614564 | H30: -10.9492205 | I30: -3.27880677
A31: 26 | B31: 140.987582 | C31: 44.12525264 | D31: 147.7312973 | E31: 11.45499716 | F31: -13.83200966 | G31: 33.9722053 | H31: -10.93209347 | I31: -3.421445915
A32: 27 | B32: 140.2686512 | C32: 45.81530929 | D32: 147.5612994 | E32: 11.48140579 | F32: -14.37861433 | G32: 33.801133 | H32: -10.91398159 | I32: -3.564783988
A33: 28 | B33: 139.5224356 | C33: 47.49645398 | D33: 147.3852882 | E33: 11.50884494 | F33: -14.92431341 | G33: 33.62289381 | H33: -10.89485997 | I33: -3.708845915
A34: 29 | B34: 138.7489828 | C34: 49.16832655 | D34: 147.2032763 | E34: 11.53732313 | F34: -15.46905641 | G34: 33.43745151 | H34: -10.87470258 | I34: -3.85365656
A35: 30 | B35: 137.9483432 | C35: 50.83056499 | D35: 147.0152772 | E35: 11.56684923 | F35: -16.01279154 | G35: 33.24476868 | H35: -10.85348215 | I35: -3.999240708
A36: 31 | B36: 137.1205699 | C36: 52.48280532 | D36: 146.8213048 | E36: 11.59743241 | F36: -16.55546565 | G36: 33.04480665 | H36: -10.8311702 | I36: -4.145623062
A37: 32 | B37: 136.2657187 | C37: 54.12468159 | D37: 146.6213738 | E37: 11.62908219 | F37: -17.09702416 | G37: 32.83752549 | H37: -10.80773697 | I37: -4.292828219
A38: 33 | B38: 135.3838481 | C38: 55.7558258 | D38: 146.4154993 | E38: 11.66180842 | F38: -17.63741101 | G38: 32.62288408 | H38: -10.78315143 | I38: -4.440880658
A39: 34 | B39: 134.4750197 | C39: 57.3758678 | D39: 146.2036974 | E39: 11.69562129 | F39: -18.17656858 | G39: 32.40084005 | H39: -10.75738118 | I39: -4.589804723
A40: 35 | B40: 133.5392978 | C40: 58.98443529 | D40: 145.9859845 | E40: 11.7305313 | F40: -18.71443764 | G40: 32.17134981 | H40: -10.7303925 | I40: -4.739624607
A41: 36 | B41: 132.57675 | C41: 60.58115372 | D41: 145.7623779 | E41: 11.76654932 | F41: -19.25095726 | G41: 31.93436858 | H41: -10.70215023 | I41: -4.890364325
A42: 37 | B42: 131.5874467 | C42: 62.16564624 | D42: =SQRT(B42^2+C42^2) -> 145.5328956 | E42: 11.80368654 | F42: =F41+H41*$H$2 -> -19.78606477 | G42: =G41+I41*$H$2 -> 31.68985037 | H42: -10.67261781 | I42: -5.0420477
A43: 38 | B43: 130.5714619 | C43: 63.73753364 | D43: 145.2975563 | E43: 11.84195451 | F43: -20.31969566 | G43: 31.43774798 | H43: -10.64175718 | I43: -5.194698335
A44: 39 | B44: 129.5288728 | C44: 65.29643429 | D44: 145.0563794 | E44: 11.88136511 | F44: -20.85178352 | G44: 31.17801306 | H44: -10.60952877 | I44: -5.348339587
A45: 40 | B45: 128.4597598 | C45: 66.84196409 | D45: 144.8093852 | E45: 11.9219306 | F45: -21.38225996 | G45: 30.91059609 | H45: -10.57589146 | I45: -5.502994544
A46: 41 | B46: 127.364207 | C46: 68.37373641 | D46: 144.5565947 | E46: 11.96366354 | F46: -21.91105453 | G46: 30.63544636 | H46: -10.54080254 | I46: -5.658685992
A47: 42 | B47: 126.2423023 | C47: 69.89136201 | D47: 144.2980297 | E47: 12.00657689 | F47: -22.43809466 | G47: 30.35251206 | H47: -10.50421764 | I47: -5.815436383
A48: 43 | B48: 125.094137 | C48: 71.39444903 | D48: 144.033713 | E48: 12.05068394 | F48: -22.96330554 | G48: 30.06174024 | H48: -10.46609073 | I48: -5.973267803
A49: 44 | B49: 123.9198065 | C49: 72.88260287 | D49: 143.763668 | E49: 12.09599834 | F49: -23.48661008 | G49: 29.76307685 | H49: -10.42637403 | I49: -6.132201935
A50: 45 | B50: 122.7194101 | C50: 74.35542621 | D50: 143.4879194 | E50: 12.14253411 | F50: -24.00792878 | G50: 29.45646675 | H50: -10.38501798 | I50: -6.292260019
A51: 46 | B51: 121.4930511 | C51: 75.81251889 | D51: 143.2064925 | E51: 12.1903056 | F51: -24.52717968 | G51: 29.14185375 | H51: -10.3419712 | I51: -6.453462811
A52: 47 | B52: 120.2408372 | C52: 77.25347792 | D52: 142.9194136 | E52: 12.23932755 | F52: -25.04427824 | G52: 28.81918061 | H52: -10.29718045 | I52: -6.615830536
A53: 48 | B53: 118.9628803 | C53: 78.67789738 | D53: 142.6267101 | E53: 12.28961504 | F53: -25.55913726 | G53: 28.48838908 | H53: -10.25059053 | I53: -6.779382842
A54: 49 | B54: 117.659297 | C54: 80.08536838 | D54: 142.3284104 | E54: 12.34118353 | F54: -26.07166679 | G54: 28.14941994 | H54: -10.20214429 | I54: -6.944138748
A55: 50 | B55: 116.3302083 | C55: 81.47547903 | D55: 142.0245438 | E55: 12.39404883 | F55: -26.581774 | G55: 27.802213 | H55: -10.15178252 | I55: -7.110116591
A56: 51 | B56: 114.9757401 | C56: 82.84781438 | D56: 141.7151409 | E56: 12.4482271 | F56: -27.08936313 | G56: 27.44670717 | H56: -10.09944396 | I56: -7.277333961
A57: 52 | B57: 113.5960234 | C57: 84.20195641 | D57: 141.4002333 | E57: 12.50373487 | F57: -27.59433533 | G57: 27.08284048 | H57: -10.04506517 | I57: -7.445807647
A58: 53 | B58: 112.1911939 | C58: 85.53748391 | D58: 141.0798538 | E58: 12.56058905 | F58: -28.09658859 | G58: 26.71055009 | H58: -9.988580535 | I58: -7.615553564
A59: 54 | B59: 110.7613931 | C59: 86.85397253 | D59: 140.7540363 | E59: 12.61880686 | F59: -28.59601761 | G59: 26.32977242 | H59: -9.929922179 | I59: -7.786586683
A60: 55 | B60: 109.3067674 | C60: 88.15099469 | D60: 140.422816 | E60: 12.67840593 | F60: -29.09251372 | G60: 25.94044308 | H60: -9.869019912 | I60: -7.958920959
A61: 56 | B61: 107.8274691 | C61: 89.42811954 | D61: 140.0862294 | E61: 12.73940419 | F61: -29.58596472 | G61: 25.54249703 | H61: -9.805801173 | I61: -8.132569247
A62: 57 | B62: 106.3236564 | C62: 90.68491297 | D62: 139.7443142 | E62: 12.80181996 | F62: -30.07625477 | G62: 25.13586857 | H62: -9.740190969 | I62: -8.307543215
A63: 58 | B63: 104.7954932 | C63: 91.92093754 | D63: 139.3971095 | E63: 12.86567189 | F63: -30.56326432 | G63: 24.72049141 | H63: -9.67211182 | I63: -8.48385326
A64: 59 | B64: 103.2431497 | C64: 93.13575248 | D64: 139.0446559 | E64: 12.93097896 | F64: -31.04686991 | G64: 24.29629875 | H64: -9.601483691 | I64: -8.661508402
A65: 60 | B65: 101.6668025 | C65: 94.32891364 | D65: 138.6869953 | E65: 12.9977605 | F65: -31.5269441 | G65: 23.86322333 | H65: -9.52822394 | I65: -8.840516189
A66: 61 | B66: 100.0666347 | C66: 95.49997352 | D66: 138.3241712 | E66: 13.06603615 | F66: -32.0033553 | G66: 23.42119752 | H66: -9.452247253 | I66: -9.020882584
A67: 62 | B67: 98.44283633 | C67: 96.64848119 | D67: 137.9562284 | E67: 13.1358259 | F67: -32.47596766 | G67: 22.97015339 | H67: -9.373465587 | I67: -9.202611853
A68: 63 | B68: 96.79560429 | C68: 97.77398233 | D68: 137.5832135 | E68: 13.20715002 | F68: -32.94464094 | G68: 22.5100228 | H68: -9.291788108 | I68: -9.385706438
A69: 64 | B69: 95.12514277 | C69: 98.8760192 | D69: 137.2051747 | E69: 13.2800291 | F69: -33.40923034 | G69: 22.04073747 | H69: -9.207121135 | I69: -9.570166831
A70: 65 | B70: 93.43166345 | C70: 99.95413066 | D70: 136.8221618 | E70: 13.35448401 | F70: -33.8695864 | G70: 21.56222913 | H70: -9.11936808 | I70: -9.755991438
A71: 66 | B71: 91.71538571 | C71: 101.0078521 | D71: 136.4342265 | E71: =$C$2*D71^$E$2 -> 13.43053591 | F71: -34.3255548 | G71: 21.07442956 | H71: -9.028429395 | I71: -9.943176429
A72: 67 | B72: =B71+F72*$H$2 -> 89.9765369 | C72: =C71+G72*$H$2 -> 102.0367157 | D72: 136.0414221 | E72: 13.50820622 | F72: -34.77697627 | G72: 20.57727074 | H72: =-E72*B72/D72 -> -8.934202513 | I72: =-C72*E72/D72 -> -10.13171559
A73: 68 | B73: 88.21535258 | C73: 103.0402499 | D73: 135.6438039 | E73: 13.58751661 | F73: -35.2236864 | G73: 20.07068496 | H73: -8.836581799 | I73: -10.32160016
A74: 69 | B74: 86.4320768 | C74: 104.0179802 | D74: 135.2414289 | E74: 13.66848899 | F74: -35.66551549 | G74: 19.55460495 | H74: -8.735458499 | I74: -10.51281865 | J74: =IF(ABS($B74-$B$5)<1,IF(ABS($C74-$C$5)<1,$A74,""),"") -> 
A75: 70 | B75: 84.62696238 | C75: 104.9694284 | D75: 134.8343564 | E75: 13.75114546 | F75: -36.10228841 | G75: 19.02896402 | H75: -8.630720691 | I75: -10.70535668
A76: 71 | B76: 82.80027116 | C76: 105.8941132 | D76: 134.4226473 | E76: 13.83550834 | F76: -36.53382445 | G76: 18.49369619 | H76: -8.522253244 | I76: -10.89919679
A77: 72 | B77: 80.9522743 | C77: 106.79155 | D77: 134.006365 | E77: 13.92160011 | F77: -36.95993711 | G77: 17.94873635 | H77: -8.409937773 | I77: -11.0943182
A78: 73 | B78: 79.0832526 | C78: 107.661251 | D78: 133.5855749 | E78: 14.00944341 | F78: -37.380434 | G78: 17.39402044 | H78: -8.293652611 | I78: -11.29069666
A79: 74 | B79: 77.19349677 | C79: 108.5027253 | D79: 133.1603445 | E79: 14.09906097 | F79: -37.79511663 | G79: 16.8294856 | H79: -8.173272772 | I79: -11.48830416
A80: 75 | B80: 75.28330776 | C80: 109.3154788 | D80: 132.7307437 | E80: 14.19047565 | F80: -38.20378027 | G80: 16.2550704 | H80: -8.048669926 | I80: -11.68710878
A81: 76 | B81: 73.35299707 | C81: 110.0990146 | D81: 132.296845 | E81: 14.28371033 | F81: -38.60621377 | G81: 15.67071496 | H81: -7.919712389 | I81: -11.88707435
A82: 77 | B82: 71.4028871 | C82: 110.8528326 | D82: 131.8587228 | E82: 14.37878794 | F82: -39.00219938 | G82: 15.07636124 | H82: -7.786265103 | I82: -12.08816026
A83: 78 | B83: 69.43331147 | C83: 111.5764303 | D83: 131.4164546 | E83: 14.47573139 | F83: -39.39151264 | G83: 14.47195323 | H83: -7.648189639 | I83: -12.29032117
A84: 79 | B84: 67.44461536 | C84: 112.2693021 | D84: 130.9701201 | E84: 14.57456352 | F84: -39.77392212 | G84: 13.85743717 | H84: -7.5053442 | I84: -12.49350673
A85: 80 | B85: 65.4371559 | C85: 112.9309402 | D85: 130.5198017 | E85: 14.6753071 | F85: -40.14918933 | G85: 13.23276183 | H85: -7.357583645 | I85: -12.69766125
A86: 81 | B86: 63.41130247 | C86: 113.5608342 | D86: 130.0655848 | E86: 14.77798471 | F86: -40.51706851 | G86: 12.59787877 | H86: -7.204759509 | I86: -12.90272346
A87: 82 | B87: 61.36743715 | C87: 114.1584713 | D87: 129.6075573 | E87: 14.88261878 | F87: -40.87730649 | G87: 11.9527426 | H87: -7.046720048 | I87: -13.1086261
A88: 83 | B88: 59.30595502 | C88: 114.7233369 | D88: 129.1458103 | E88: 14.98923144 | F88: -41.22964249 | G88: 11.29731129 | H88: -6.883310296 | I88: -13.31529567
A89: 84 | B89: 57.22726462 | C89: 115.2549142 | D89: 128.6804378 | E89: 15.09784454 | F89: -41.57380801 | G89: 10.63154651 | H89: -6.71437213 | I89: -13.52265199
A90: 85 | B90: 55.13178829 | C90: 115.7526849 | D90: 128.2115367 | E90: 15.20847953 | F90: -41.90952661 | G90: 9.955413908 | H90: -6.53974436 | I90: -13.73060791
A91: 86 | B91: 53.0199626 | C91: 116.2161291 | D91: 127.7392073 | E91: 15.32115742 | F91: -42.23651383 | G91: 9.268883513 | H91: -6.359262833 | I91: -13.93906887
A92: 87 | B92: 50.89223875 | C92: 116.6447256 | D92: 127.2635532 | E92: 15.43589869 | F92: -42.55447697 | G92: 8.571930069 | H92: -6.172760559 | I92: -14.14793256
A93: 88 | B93: 48.749083 | C93: 117.0379522 | D93: 126.7846811 | E93: 15.55272323 | F93: -42.863115 | G93: 7.864533441 | H93: -5.980067853 | I93: -14.35708844
A94: 89 | B94: 46.59097708 | C94: 117.3952862 | D94: 126.3027013 | E94: 15.67165023 | F94: -43.16211839 | G94: 7.14667902 | H94: -5.78101251 | I94: -14.56641738
A95: 90 | B95: 44.41841863 | C95: 117.7162041 | D95: 125.8177278 | E95: 15.7926981 | F95: -43.45116902 | G95: 6.418358151 | H95: -5.575419997 | I95: -14.77579118
A96: 91 | B96: 42.23192163 | C96: 118.0001825 | D96: 125.3298779 | E96: 15.91588439 | F96: -43.72994002 | G96: 5.679568592 | H96: -5.363113679 | I96: -14.98507216
A97: 92 | B97: 40.03201684 | C97: 118.2466983 | D97: 124.8392728 | E97: 16.04122567 | F97: -43.9980957 | G97: 4.930314984 | H97: -5.143915066 | I97: -15.19411263
A98: 93 | B98: 37.81925227 | C98: 118.4552287 | D98: 124.3460376 | E98: 16.1687374 | F98: -44.25529146 | G98: 4.170609352 | H98: -4.917644104 | I98: -15.40275448
A99: 94 | B99: 35.59419359 | C99: 118.6252523 | D99: 123.8503012 | E99: 16.29843386 | F99: -44.50117366 | G99: 3.400471628 | H99: -4.684119492 | I99: -15.61082864
A100: 95 | B100: 33.3574246 | C100: 118.7562488 | D100: 123.3521966 | E100: 16.43032799 | F100: -44.73537964 | G100: 2.619930196 | H100: -4.443159037 | I100: -15.81815462
A101: 96 | B101: 31.10954773 | C101: 118.8477 | D101: 122.851861 | E101: 16.56443128 | F101: -44.95753759 | G101: 1.829022465 | H101: -4.194580051 | I101: -16.02453998
A102: 97 | B102: 28.8511844 | C102: 118.8990897 | D102: 122.3494356 | E102: 16.70075359 | F102: -45.16726659 | G102: 1.027795466 | H102: -3.93819979 | I102: -16.22977982
A103: 98 | B103: 26.58297557 | C103: 118.9099051 | D103: 121.845066 | E103: 16.83930308 | F103: -45.36417658 | G103: 0.2163064745 | H103: -3.673835937 | I103: -16.43365625
A104: 99 | B104: 24.30558215 | C104: 118.8796362 | D104: 121.3389024 | E104: 16.98008596 | F104: -45.54786838 | G104: -0.6053763378 | H104: -3.401307132 | I104: -16.63593787
A105: 100 | B105: 22.01968546 | C105: 118.8077776 | D105: 120.8310993 | E105: 17.1231064 | F105: -45.71793373 | G105: -1.437173231 | H105: -3.120433557 | I105: -16.83637928
A106: 101 | B106: 19.72598769 | C106: 118.693828 | D106: =SQRT(B106^2+C106^2) -> 120.3218159 | E106: 17.26836633 | F106: =F105+H105*$H$2 -> -45.87395541 | G106: =G105+I105*$H$2 -> -2.278992195 | H106: -2.831037572 | I106: -17.03472048
A107: 102 | B107: 17.42521233 | C107: 118.5372916 | D107: 119.8112162 | E107: 17.41586524 | F107: -46.01550729 | G107: -3.130728219 | H107: -2.532944406 | I107: -17.23068643
A108: 103 | B108: 15.1181046 | C108: 118.3376784 | D108: 119.2994687 | E108: 17.56560004 | F108: -46.14215451 | G108: -3.992262541 | H108: -2.225982913 | I108: -17.42398648
A109: 104 | B109: 12.80543192 | C109: 118.0945053 | D109: 118.7867471 | E109: 17.71756479 | F109: -46.25345366 | G109: -4.863461865 | H109: -1.909986386 | I109: -17.6143139
A110: 105 | B110: 10.48798427 | C110: 117.8072965 | D110: 118.2732299 | E110: 17.87175057 | F110: -46.34895297 | G110: -5.74417756 | H110: -1.58479344 | I110: -17.8013454
A111: 106 | B111: 8.166574637 | C111: 117.4755842 | D111: 117.7591008 | E111: 18.02814518 | F111: -46.42819265 | G111: -6.63424483 | H111: -1.250248959 | I111: -17.98474065
A112: 107 | B112: 5.842039382 | C112: 117.0989101 | D112: 117.2445486 | E112: 18.18673299 | F112: -46.49070509 | G112: -7.533481863 | H112: -0.9062051213 | I112: -18.16414185
A113: 108 | B113: 3.515238615 | C113: 116.6768257 | D113: =SQRT(B113^2+C113^2) -> 116.7297672 | E113: 18.34749465 | F113: =F112+H112*$H$2 -> -46.53601535 | G113: =G112+I112*$H$2 -> -8.441688955 | H113: -0.5525224904 | I113: -18.33917334
A114: 109 | B114: 1.187056541 | C114: 116.2088933 | D114: 116.2149559 | E114: 18.51040687 | F114: -46.56364148 | G114: -9.358647622 | H114: -0.189071186 | I114: -18.50944123
A115: 110 | B115: -1.141598211 | C115: 115.6946873 | D115: 115.7003194 | E115: 18.67544215 | F115: -46.57309503 | G115: -10.28411968 | H115: 0.1842678693 | I115: -18.67453305
A116: 111 | B116: -3.469792293 | C116: 115.133795 | D116: 115.1860678 | E116: 18.84256853 | F116: -46.56388164 | G116: -11.21784634 | H116: 0.5676016235 | I116: -18.83401756
A117: 112 | B117: -5.796567371 | C117: 114.5258176 | D117: 114.6724165 | E117: 19.01174935 | F117: -46.53550156 | G117: -12.15954721 | H117: 0.9610234903 | I117: -18.98744446
A118: 113 | B118: -8.12093989 | C118: 113.8703717 | D118: 114.1595866 | E118: 19.1829429 | F118: -46.48745039 | G118: -13.10891944 | H118: 1.364611863 | I118: -19.13434432
A119: 114 | B119: -10.44190088 | C119: 113.1670898 | D119: 113.6478047 | E119: 19.3561022 | F119: -46.41921979 | G119: -14.06563665 | H119: 1.778428551 | I119: -19.2742285
A120: 115 | B120: -12.7584158 | C120: 112.4156224 | D120: 113.137303 | E120: 19.53117471 | F120: -46.33029836 | G120: -15.02934808 | H120: 2.20251713 | I120: -19.40658919
A121: 116 | B121: -15.06942442 | C121: 111.6156386 | D121: 112.6283194 | E121: 19.70810201 | F121: -46.22017251 | G121: -15.99967754 | H121: 2.636901229 | I121: -19.53089953
A122: 117 | B122: -17.3738408 | C122: 110.7668274 | D122: 112.121097 | E122: 19.88681949 | F122: -46.08832745 | G122: -16.97622251 | H122: 3.081582725 | I122: -19.64661389
A123: 118 | B123: -19.67055321 | C123: 109.8688998 | D123: 111.6158851 | E123: 20.06725613 | F123: -45.93424831 | G123: -17.95855321 | H123: 3.536539887 | I123: -19.75316821
A124: 119 | B124: -21.95842428 | C124: 108.9215892 | D124: 111.112938 | E124: 20.24933412 | F124: -45.75742132 | G124: -18.94621162 | H124: 4.001725434 | I124: -19.8499805
A125: 120 | B125: -24.23629103 | C125: 107.9246537 | D125: 110.6125159 | E125: 20.43296861 | F125: -45.55733504 | G125: -19.93871064 | H125: 4.477064551 | I125: -19.93645152
A126: 121 | B126: -26.50296512 | C126: 106.877877 | D126: 110.1148843 | E126: 20.61806739 | F126: -45.33348182 | G126: -20.93553322 | H126: 4.962452845 | I126: -20.01196554
A127: 122 | B127: -28.75723308 | C127: 105.7810704 | D127: 109.6203143 | E127: 20.80453065 | F127: -45.08535917 | G127: -21.9361315 | H127: 5.457754256 | I127: -20.07589137
A128: 123 | B128: -30.99785665 | C128: 104.6340741 | D128: 109.1290822 | E128: 20.99225065 | F128: -44.81247146 | G128: -22.93992607 | H128: 5.962798947 | I128: -20.12758346
A129: 124 | B129: -33.22357323 | C129: 103.4367589 | D129: 108.6414695 | E129: 21.18111147 | F129: -44.51433151 | G129: -23.94630524 | H129: 6.477381162 | I129: -20.16638333
A130: 125 | B130: -35.43309635 | C130: 102.1890276 | D130: 108.1577629 | E130: 21.37098879 | F130: -44.19046246 | G130: -24.95462441 | H130: 7.001257093 | I130: -20.19162106
A131: 126 | B131: -37.62511633 | C131: 100.8908174 | D131: 107.6782541 | E131: 21.5617496 | F131: -43.8403996 | G131: -25.96420546 | H131: 7.534142744 | I131: -20.20261713
A132: 127 | B132: -39.79830095 | C132: 99.54210054 | D132: 107.2032394 | E132: 21.753252 | F132: -43.46369246 | G132: -26.97433631 | H132: 8.075711842 | I132: -20.19868439
A133: 128 | B133: -41.9512963 | C133: 98.14288702 | D133: 106.7330199 | E133: 21.94534505 | F133: -43.05990687 | G133: -27.98427053 | H133: 8.625593783 | I133: -20.17913034
A134: 129 | B134: -44.08272766 | C134: 96.69322566 | D134: 106.2679009 | E134: 22.13786855 | F134: -42.62862718 | G134: -28.99322705 | H134: 9.183371663 | I134: -20.14325963
A135: 130 | B135: -46.19120059 | C135: 95.19320616 | D135: 105.8081921 | E135: =$C$2*D135^$E$2 -> 22.3306529 | F135: -42.1694586 | G135: -30.00039003 | H135: 9.7485804 | I135: -20.09037678
A136: 131 | B136: =B135+F136*$H$2 -> -48.27530207 | C136: =C135+G136*$H$2 -> 93.64296072 | D136: 105.3542068 | E136: 22.52351907 | F136: -41.68202958 | G136: -31.00490887 | H136: =-E136*B136/D136 -> 10.32070498 | I136: =-C136*E136/D136 -> -20.01978921
A137: 132 | B137: -50.33360178 | C137: 92.0426658 | D137: 104.906262 | E137: 22.71627847 | F137: -41.16599433 | G137: -32.00589833 | H137: 10.89917888 | I137: -19.9308105
A138: 133 | B138: -52.36465355 | C138: 90.39254386 | D138: 104.4646779 | E138: 22.90873295 | F138: -40.62103539 | G138: -33.00243886 | H138: 11.4833826 | I138: -19.82276392 | J138: =IF(ABS($B138-$B$5)<1,IF(ABS($C138-$C$5)<1,$A138,""),"") -> 
A139: 134 | B139: -54.36699686 | C139: 88.69286501 | D139: 104.0297777 | E139: 23.10067487 | F139: -40.04686626 | G139: -33.99357705 | H139: 12.07264252 | I139: -19.69498621
A140: 135 | B140: -56.33915857 | C140: 86.94394869 | D140: 103.6018871 | E140: 23.29188712 | F140: -39.44323413 | G140: -34.97832636 | H140: 12.66622992 | I140: -19.54683159
A141: 136 | B141: -58.2796547 | C141: 85.14616529 | D141: 103.1813337 | E141: 23.48214333 | F141: -38.80992263 | G141: -35.95566794 | H141: 13.26336031 | I141: -19.37767605
A142: 137 | B142: -60.18699243 | C142: 83.2999377 | D142: 102.7684469 | E142: 23.67120803 | F142: -38.14675462 | G142: -36.92455175 | H142: 13.86319305 | I142: -19.1869218
A143: 138 | B143: -62.05967218 | C143: 81.40574281 | D143: 102.3635574 | E143: 23.8588369 | F143: -37.45359497 | G143: -37.88389784 | H143: 14.46483138 | I143: -18.97400199
A144: 139 | B144: -63.89618985 | C144: 79.46411292 | D144: 101.9669962 | E144: 24.04477718 | F144: -36.7303534 | G144: -38.83259794 | H144: 15.0673228 | I144: -18.73838555
A145: 140 | B145: -65.69503921 | C145: 77.47563705 | D145: 101.5790949 | E145: 24.22876799 | F145: -35.97698726 | G145: -39.76951721 | H145: 15.66965984 | I145: -18.47958222
A146: 141 | B146: -67.45471443 | C146: 75.44096224 | D146: 101.2001842 | E146: 24.41054089 | F146: -35.19350427 | G146: -40.69349632 | H146: 16.2707813 | I146: -18.19714765
A147: 142 | B147: -69.17371269 | C147: 73.36079455 | D147: 100.8305941 | E147: 24.58982039 | F147: -34.3799652 | G147: -41.60335371 | H147: 16.86957402 | I147: -17.89068862
A148: 143 | B148: -70.85053701 | C148: 71.23590015 | D148: 100.4706528 | E148: 24.76632461 | F148: -33.5364865 | G148: -42.49788814 | H148: 17.46487507 | I148: -17.55986827
A149: 144 | B149: -72.48369915 | C149: 69.06710607 | D149: 100.1206861 | E149: 24.93976602 | F149: -32.66324275 | G149: -43.37588155 | H149: 18.05547452 | I149: -17.20441132
A150: 145 | B150: -74.0717226 | C150: 66.85530096 | D150: 99.78101701 | E150: 25.1098522 | F150: -31.76046902 | G150: -44.23610212 | H150: 18.64011875 | I150: -16.8241092
A151: 146 | B151: -75.61314576 | C151: 64.60143558 | D151: 99.45196474 | E151: 25.27628677 | F151: -30.82846308 | G151: -45.07730758 | H151: 19.21751431 | I151: -16.41882507
A152: 147 | B152: -77.10652512 | C152: 62.30652314 | D152: 99.13384408 | E152: 25.43877035 | F152: -29.86758737 | G152: -45.89824883 | H152: 19.78633234 | I152: -15.98849866
A153: 148 | B153: -78.55043866 | C153: 59.97163945 | D153: 98.8269647 | E153: 25.59700155 | F153: -28.87827075 | G153: -46.69767376 | H153: 20.34521354 | I153: -15.53315082
A154: 149 | B154: -79.94348917 | C154: 57.59792289 | D154: 98.53163036 | E154: 25.75067815 | F154: -27.86101007 | G154: -47.4743313 | H154: 20.89277375 | I154: -15.05288778
A155: 150 | B155: -81.28430773 | C155: 55.1865741 | D155: 98.24813813 | E155: 25.89949826 | F155: -26.81637139 | G155: -48.22697569 | H155: 21.42761 | I155: -14.547905
A156: 151 | B156: -82.57155728 | C156: 52.73885556 | D156: 97.97677764 | E156: 26.04316155 | F156: -25.74499089 | G156: -48.95437094 | H156: 21.94830712 | I156: -14.01849059
A157: 152 | B157: -83.80393606 | C157: 50.25609078 | D157: 97.7178303 | E157: 26.18137057 | F157: -24.64757553 | G157: -49.65529547 | H157: 22.45344476 | I157: -13.46502815
A158: 153 | B158: -84.98018122 | C158: 47.73966344 | D158: 97.4715685 | E158: 26.3138321 | F158: -23.52490329 | G158: -50.32854688 | H158: 22.94160497 | I158: -12.88799911
A159: 154 | B159: -86.09907237 | C159: 45.1910161 | D159: 97.23825481 | E159: 26.44025852 | F159: -22.37782304 | G159: -50.97294684 | H159: 23.41137998 | I159: -12.2879843
A160: 155 | B160: -87.15943507 | C160: 42.6116488 | D160: 97.01814127 | E160: 26.56036928 | F160: -21.20725404 | G160: -51.58734605 | H160: 23.86138047 | I160: -11.66566492
A161: 156 | B161: -88.16014433 | C161: 40.00311733 | D161: 96.81146855 | E161: 26.67389225 | F161: -20.01418502 | G161: -52.1706293 | H161: 24.29024397 | I161: -11.0218227
A162: 157 | B162: -89.10012797 | C162: 37.36703131 | D162: 96.61846528 | E162: 26.78056525 | F162: -18.79967282 | G162: -52.72172043 | H162: 24.69664348 | I162: -10.35733922
A163: 158 | B163: -89.97837 | C163: 34.70505194 | D163: 96.43934725 | E163: 26.8801374 | F163: -17.56484065 | G163: -53.23958739 | H163: 25.07929613 | I163: -9.673194512
A164: 159 | B164: -90.79391379 | C164: 32.01888958 | D164: 96.27431678 | E164: 26.97237059 | F164: -16.31087584 | G164: -53.72324712 | H164: 25.43697189 | I164: -8.970464654
A165: 160 | B165: -91.54586515 | C165: 29.31030107 | D165: 96.12356202 | E165: 27.05704082 | F165: -15.03902725 | G165: -54.17177035 | H165: 25.7685021 | I165: -8.250318607
A166: 161 | B166: -92.23339526 | C166: 26.58108675 | D166: 95.98725631 | E166: 27.13393952 | F166: -13.75060214 | G166: -54.58428628 | H166: 26.07278783 | I166: -7.51401413
A167: 162 | B167: -92.8557434 | C167: 23.8330874 | D167: 95.86555762 | E167: 27.20287483 | F167: -12.44696275 | G167: -54.95998699 | H167: 26.34880793 | I167: -6.762892842
A168: 163 | B168: -93.41221952 | C168: 21.06818082 | D168: 95.75860796 | E168: 27.26367277 | F168: -11.12952235 | G168: -55.29813163 | H168: 26.59562664 | I168: -5.998374454
A169: 164 | B169: -93.90220657 | C169: 18.2882783 | D169: 95.66653292 | E169: 27.31617831 | F169: -9.799741021 | G169: -55.59805035 | H169: 26.81240074 | I169: -5.221950204
A170: 165 | B170: -94.32516262 | C170: 15.49532091 | D170: 95.58944122 | E170: 27.3602564 | F170: -8.459120984 | G170: -55.85914786 | H170: 26.99838602 | I170: -4.435175555
A171: 166 | B171: -94.6806227 | C171: 12.69127558 | D171: 95.52742429 | E171: 27.39579279 | F171: -7.109201683 | G171: -56.08090664 | H171: 27.15294315 | I171: -3.639662208
A172: 167 | B172: -94.96820043 | C172: 9.878131091 | D172: 95.48055596 | E172: 27.42269481 | F172: -5.751554525 | G172: -56.26288975 | H172: 27.27554266 | I172: -2.837069511
A173: 168 | B173: -95.1875893 | C173: 7.05789393 | D173: 95.4488922 | E173: 27.44089198 | F173: -4.387777392 | G173: -56.40474323 | H173: 27.36576921 | I173: -2.029095366
A174: 169 | B174: -95.33856374 | C174: 4.23258403 | D174: 95.43247091 | E174: 27.45033643 | F174: -3.019488932 | G174: -56.50619799 | H174: 27.42332483 | I174: -1.217466702
A175: 170 | B175: -95.42097988 | C175: 1.404230463 | D175: 95.43131176 | E175: 27.45100328 | F175: -1.64832269 | G175: -56.56707133 | H175: 27.44803129 | I175: -0.4039296363
A176: 171 | B176: -95.43477593 | C176: -1.425132927 | D176: 95.44541614 | E176: 27.44289078 | F176: -0.2759211257 | G176: -56.58726781 | H176: 27.43983146 | I176: 0.409760561
A177: 172 | B177: -95.37997241 | C177: -4.253471916 | D177: =SQRT(B177^2+C177^2) -> 95.47476714 | E177: 27.42602029 | F177: =F176+H176*$H$2 -> 1.096070447 | G177: =G176+I176*$H$2 -> -56.56677978 | H177: 27.39878962 | I177: 1.221849611
A178: 173 | B178: -95.25667191 | C178: -7.078756282 | D178: 95.51932964 | E178: 27.40043622 | F178: 2.466009928 | G178: -56.5056873 | H178: 27.32509088 | I178: 2.030594339
A179: 174 | B179: -95.06505869 | C179: -9.898964161 | D179: 95.5790504 | E179: 27.36620563 | F179: 3.832264472 | G179: -56.40415759 | H179: 27.21903946 | I179: 2.834272653
A180: 175 | B180: -94.80539787 | C180: -12.71208636 | D180: 95.65385828 | E180: 27.32341786 | F180: 5.193216445 | G180: -56.26244395 | H180: 27.08105609 | I180: 3.631193281
A181: 176 | B181: -94.47803441 | C181: -15.51613057 | D181: 95.74366451 | E181: 27.27218393 | F181: 6.54726925 | G181: -56.08088429 | H181: 26.91167447 | I181: 4.419705148
A182: 177 | B182: -94.08339176 | C182: -18.30912552 | D182: 95.84836296 | E182: 27.21263579 | F182: 7.892852973 | G182: -55.85989903 | H182: 26.71153679 | I182: 5.198206304
A183: 178 | B183: -93.62197027 | C183: -21.08912496 | D183: 95.96783059 | E183: 27.14492548 | F183: 9.228429813 | G183: -55.59998872 | H183: 26.48138851 | I183: 5.965152302
A184: 179 | B184: -93.0943453 | C184: -23.85421152 | D184: 96.10192784 | E184: 27.06922419 | F184: 10.55249924 | G184: -55.3017311 | H184: 26.22207234 | I184: 6.719063955
A185: 180 | B185: -92.50116516 | C185: -26.60250041 | D185: 96.25049914 | E185: 26.98572112 | F185: 11.86360286 | G185: -54.9657779 | H185: 25.93452158 | I185: 7.458534384
A186: 181 | B186: -91.84314872 | C186: -29.33214297 | D186: 96.41337344 | E186: 26.8946224 | F186: 13.16032893 | G186: -54.59285119 | H186: 25.61975291 | I186: 8.182235318
A187: 182 | B187: -91.12108289 | C187: -32.04132994 | D187: 96.59036479 | E187: 26.79614975 | F187: 14.44131658 | G187: -54.18373942 | H187: 25.27885869 | I187: 8.888922586
A188: 183 | B188: -90.33581991 | C188: -34.72829461 | D188: 96.78127301 | E188: 26.69053924 | F188: 15.70525951 | G188: -53.73929329 | H188: 24.91299888 | I188: 9.57744077
A189: 184 | B189: -89.48827444 | C189: -37.39131567 | D189: 96.98588428 | E189: 26.57803989 | F189: 16.95090946 | G189: -53.26042125 | H189: 24.52339271 | I189: 10.246727
A190: 185 | B190: -88.57942048 | C190: -40.02871991 | D190: 97.20397189 | E190: 26.45891227 | F190: 18.17707909 | G190: -52.7480849 | H190: 24.11131017 | I190: 10.89581391
A191: 186 | B191: -87.61028825 | C191: -42.63888462 | D191: 97.43529694 | E191: 26.33342708 | F191: 19.3826446 | G191: -52.20329421 | H191: 23.67806339 | I191: 11.52383165
A192: 187 | B192: -86.58196086 | C192: -45.22023975 | D192: 97.67960908 | E192: 26.20186369 | F192: 20.56654777 | G192: -51.62710262 | H192: 23.22499811 | I192: 12.13000921
A193: 188 | B193: -85.49557098 | C193: -47.77126986 | D193: 97.93664729 | E193: 26.06450873 | F193: 21.72779768 | G193: -51.02060216 | H193: 22.75348522 | I193: 12.71367476
A194: 189 | B194: -84.35229738 | C194: -50.29051578 | D194: 98.2061406 | E194: 25.92165467 | F194: 22.86547194 | G194: -50.38491842 | H194: 22.26491246 | I194: 13.27425531
A195: 190 | B195: -83.15336151 | C195: -52.77657607 | D195: 98.48780895 | E195: 25.77359839 | F195: 23.97871756 | G195: -49.72120566 | H195: 21.76067645 | I195: 13.81127564
A196: 191 | B196: -81.90002394 | C196: -55.22810816 | D196: 98.78136389 | E196: 25.62063988 | F196: 25.06675138 | G196: -49.03064188 | H196: 21.24217501 | I196: 14.32435649
A197: 192 | B197: -80.59358093 | C197: -57.64382936 | D197: 99.08650943 | E197: 25.46308088 | F197: 26.12886013 | G197: -48.31442405 | H197: 20.7107999 | I197: 14.81321219
A198: 193 | B198: -79.23536092 | C198: -60.02251754 | D198: 99.40294277 | E198: 25.30122364 | F198: 27.16440013 | G198: -47.57376344 | H198: 20.16792995 | I198: 15.27764769
A199: 194 | B199: -77.82672109 | C199: -62.36301159 | D199: 99.73035511 | E199: =$C$2*D199^$E$2 -> 25.13536973 | F199: 28.17279663 | G199: -46.80988106 | H199: 19.61492473 | I199: 15.71755512
A200: 195 | B200: =B199+F200*$H$2 -> -76.36904395 | C200: =C199+G200*$H$2 -> -64.66421175 | D200: 100.0684324 | E200: 24.96581891 | F200: 29.15354286 | G200: -46.0240033 | H200: =-E200*B200/D200 -> 19.05311872 | I200: =-C200*E200/D200 -> 16.13290987
A201: 196 | B201: -74.86373401 | C201: -66.92507964 | D201: 100.4168559 | E201: 24.79286809 | F201: 30.1061988 | G201: -45.21735781 | H201: 18.48381594 | I201: 16.52376642
... 300 more rows

Sheet Sheet3
